bitfinex/quotes_ETHUSD_20220305
["timestamp","ask_amount","ask_price","bid_price","bid_amount"]
[1646451838935,0.01736482,2630.9,2630.7,0.75956906]
[1646451838936,0.78723513,2630.8,2630.7,0.75956906]
[1646451839335,0.822308,2630.8,2630.7,0.75956906]
[1646451842985,0.82249333,2630.8,2630.7,0.75956906]
[1646451845137,0.03507287,2630.8,2630.7,0.75956906]
[1646451845339,0.82257067,2630.8,2630.7,0.75956906]
[1646451845536,0.82257858,2630.8,2630.7,0.75956906]
[1646451845736,0.82257701,2630.8,2630.7,0.75956906]
[1646451845936,0.03507287,2630.8,2630.7,0.75956906]
[1646451846137,0.82257461,2630.8,2630.7,0.75956906]
[1646451846337,0.82257573,2630.8,2630.7,0.75956906]
[1646451846536,0.03507287,2630.8,2630.7,0.75956906]
[1646451846737,0.82254034,2630.8,2630.7,0.75956906]
[1646451846938,0.03507287,2630.8,2630.7,0.75956906]
[1646451847140,0.82253946,2630.8,2630.7,0.75956906]
[1646451847338,0.03507287,2630.8,2630.7,0.75956906]
[1646451848145,0.82260403,2630.8,2630.7,0.75956906]
[1646451848387,0.03507287,2630.8,2630.7,0.75956906]
[1646451848589,0.82261394,2630.8,2630.7,0.75956906]
[1646451848789,0.82261427,2630.8,2630.7,0.75956906]
[1646451849089,0.82261428,2630.8,2630.7,0.75956906]
[1646451849292,0.03507287,2630.8,2630.7,0.75956906]
[1646451849691,0.8226477,2630.8,2630.7,0.75956906]
[1646451849892,0.03507287,2630.8,2630.7,0.75956906]
[1646451850094,0.82263522,2630.8,2630.7,0.75956906]
[1646451850393,0.03507287,2630.8,2630.7,0.75956906]
[1646451850596,0.82261524,2630.8,2630.7,0.75956906]
[1646451850793,0.03507287,2630.8,2630.7,0.75956906]
[1646451850992,0.82262131,2630.8,2630.7,0.75956906]
[1646451851294,0.03507287,2630.8,2630.7,0.75956906]
[1646451851492,0.82265328,2630.8,2630.7,0.75956906]
[1646451851691,0.03507287,2630.8,2630.7,0.75956906]
[1646451851893,0.82264949,2630.8,2630.7,0.75956906]
[1646451852134,0.03507287,2630.8,2630.7,0.75956906]
[1646451852736,0.82262865,2630.8,2630.7,0.75956906]
[1646451852938,0.82262872,2630.8,2630.7,0.75956906]
[1646451853139,0.03507287,2630.8,2630.7,0.75956906]
[1646451853337,0.82266718,2630.8,2630.7,0.75956906]
[1646451853537,0.03507287,2630.8,2630.7,0.75956906]
[1646451853737,0.82271054,2630.8,2630.7,0.75956906]
[1646451853938,0.03507287,2630.8,2630.7,0.75956906]
[1646451854139,0.82271238,2630.8,2630.7,0.75956906]
[1646451854337,0.03507287,2630.8,2630.7,0.75956906]
[1646451854537,0.03507287,2630.8,2630.7,0.50956906]
[1646451854538,0.82268798,2630.8,2630.7,0.50956906]
[1646451854837,3.83438073,2630.9,2630.8,0.77231454]
[1646451855641,3.83438073,2630.9,2630.6,0.39741245]
[1646451859289,3.8,2630.9,2630.6,0.39741245]
[1646451860737,3.8,2630.9,2630.6,0.34741245]
[1646451864790,0.06508248,2630.8,2630.6,0.34741245]
[1646451874636,0.06508248,2630.8,2630.7,0.73468671]
[1646451874835,0.87820589,2630.8,2630.7,0.73468671]
[1646451875037,0.06508248,2630.8,2630.7,0.73468671]
[1646451875438,0.06508248,2630.8,2630.7,4.23468671]
[1646451875638,0.8779701,2630.8,2630.7,4.23468671]
[1646451875840,0.06508248,2630.8,2630.7,5.61678671]
[1646451876040,0.06508248,2630.8,2630.7,2.11678671]
[1646451876239,2.20203669,2630.9,2630.7,1.80879421]
[1646451876442,0.84403058,2630.8,2630.7,0.3821]
[1646451876641,2.20203669,2630.9,2630.7,5.27742164]
[1646451876842,2.20203669,2630.9,2630.8,0.70331414]
[1646451877841,3.04601062,2630.9,2630.8,0.70331414]
[1646451878046,3.04601062,2630.9,2630.8,4.20331414]
[1646451878301,3.04601062,2630.9,2630.8,1.70331414]
[1646451878302,2.20203669,2630.9,2630.8,1.70331414]
[1646451878791,2.20203669,2630.9,2630.8,0.70331414]
[1646451879292,2.20203669,2630.9,2630.8,4.20331414]
[1646451879692,2.20203669,2630.9,2630.8,5.20331414]
[1646451880793,2.20203669,2630.9,2630.8,1.70331414]
[1646451881193,3.04582475,2630.9,2630.8,0.70331414]
[1646451881596,3.04582475,2630.9,2630.8,4.20331414]
[1646451881793,3.04582475,2630.9,2630.8,5.20331414]
[1646451882439,3.04582475,2630.9,2630.8,1.70331414]
[1646451882837,3.04582475,2630.9,2630.8,0.70331414]
[1646451884943,3.04582475,2630.9,2630.7,0.70331414]
[1646451885143,0.84378806,2630.8,2630.7,0.70331414]
[1646451886991,0.84378806,2630.8,2630.5,0.70569921]
[1646451887795,0.84378806,2630.8,2630.5,0.70331414]
[1646451887992,0.84378806,2630.8,2630.5,0.70569868]
[1646451888593,2.20203669,2630.9,2630.6,3.5]
[1646451888793,2.20203669,2630.9,2630.7,0.70331414]
[1646451890242,0.84344778,2630.8,2630.7,0.70331414]
[1646451891244,2.20203669,2630.9,2630.7,0.70331414]
[1646451891445,2.20203669,2630.9,2630.8,3.5]
[1646451891745,3.04540364,2630.9,2630.8,5.20331414]
[1646451891947,3.04540364,2630.9,2630.8,1.70331414]
[1646451892145,2.20203669,2630.9,2630.8,1.70331414]
[1646451892348,2.20203669,2630.9,2630.8,0.70331414]
[1646451892848,2.20203669,2630.9,2630.7,0.70331414]
[1646451893050,2.20203669,2630.9,2630.8,4.20331414]
[1646451893294,2.20203669,2630.9,2630.8,5.20331414]
[1646451893785,2.20203669,2630.9,2630.8,1.70331414]
[1646451894188,2.20203669,2630.9,2630.8,0.70331414]
[1646451894891,2.20203669,2630.9,2630.8,4.20331414]
[1646451895292,2.20203669,2630.9,2630.8,5.20331414]
[1646451895991,2.20203669,2630.9,2630.8,1.70331414]
[1646451896191,0.53901652,2630.9,2630.8,1.60331414]
[1646451896392,0.53901652,2630.9,2630.8,0.60331414]
[1646451896594,0.53901652,2630.9,2630.6,4.5]
[1646451897240,0.09115136,2631.7,2630.9,1.19276853]
[1646451897439,0.6995297,2631.6,2630.9,1.19276853]
[1646451897640,0.60754575,2631.6,2630.9,1.19276853]
[1646451899043,2.0,2631.7,2630.9,1.19276853]
[1646451899647,2.0,2631.7,2630.7,1.2257]
[1646451900547,0.00096,2631.6,2630.8,3.5]
[1646451900795,2.14102095,2631.7,2630.8,5.56344863]
[1646451902694,0.00277482,2631.6,2631.1,0.0027754]
[1646451903295,2.14006095,2631.7,2630.8,5.56344863]
[1646451903494,0.00277489,2631.6,2631.1,0.00277547]
[1646451904536,2.14102095,2631.7,2630.8,5.56344863]
[1646451904743,0.00277489,2631.6,2631.1,0.00277547]
[1646451905042,0.00277489,2631.6,2631.2,0.964714]
[1646451905844,0.0313035,2631.9,2631.2,0.964714]
[1646451906042,0.00277492,2631.6,2631.2,0.964714]
[1646451906944,0.0313035,2631.9,2631.2,0.964714]
[1646451907143,0.00268127,2631.6,2631.2,0.964714]
[1646451908147,0.70021245,2631.8,2631.0,1.1423]
[1646451908392,0.00268127,2631.6,2631.1,0.00268183]
[1646451909193,0.76312782,2631.4,2631.1,0.00268183]
[1646451909392,0.76312782,2631.4,2630.9,0.87562987]
[1646451909591,0.76312782,2631.4,2631.1,0.0026818]
[1646451910694,0.76312782,2631.4,2631.1,0.0026308]
[1646451911195,0.66312782,2631.4,2631.1,0.0026308]
[1646451911794,2.20509257,2631.9,2631.0,4.5]
[1646451911795,0.82106309,2631.9,2631.0,4.5]
[1646451912035,0.00263025,2631.6,2631.1,0.0026308]
[1646451912936,0.00263025,2631.6,2631.0,4.5]
[1646451912937,1.76633699,2631.9,2631.0,1.0]
[1646451913341,1.76633699,2631.9,2630.9,2.02592987]
[1646451913740,1.76633699,2631.9,2631.0,3.5]
[1646451914242,1.76633699,2631.9,2631.0,4.5]
[1646451914440,1.76633699,2631.9,2630.9,2.02592987]
[1646451914441,0.00259447,2631.7,2631.2,0.00259498]
[1646451915442,1.76633699,2631.9,2630.9,2.02592987]
[1646451915643,0.00235568,2631.7,2631.2,0.00235614]
[1646451916484,0.87383034,2631.8,2631.1,0.67095563]
[1646451916885,0.87383034,2631.8,2631.2,0.67331177]
[1646451916886,3.80235568,2631.7,2631.2,0.67331177]
[1646451917085,0.87287034,2631.6,2631.3,0.67095563]
[1646451917386,0.87287034,2631.6,2631.4,0.67137045]
[1646451917585,0.75414154,2631.3,2631.2,0.00235614]
[1646451917791,1.62701188,2631.3,2631.0,0.67137112]
[1646451917991,0.87287034,2631.2,2631.0,0.67137112]
[1646451919190,0.87287034,2631.2,2631.0,0.67374035]
[1646451920240,0.87287034,2631.2,2631.0,0.67137112]
[1646451920441,0.87287034,2631.2,2631.0,0.67375596]
[1646451921339,0.87287034,2631.2,2631.0,0.67137112]
[1646451921539,0.87287034,2631.2,2631.0,0.67375406]
[1646451922541,0.87287034,2631.2,2631.0,0.67137112]
[1646451922742,0.87287034,2631.2,2631.0,0.67375406]
[1646451923684,0.87287034,2631.2,2631.0,0.67137112]
[1646451924289,0.87287034,2631.2,2631.0,0.67375308]
[1646451924891,0.87287034,2631.2,2631.0,0.67137112]
[1646451925291,0.87287034,2631.2,2631.0,0.67375283]
[1646451925491,0.87287034,2631.2,2631.1,0.67137112]
[1646451925694,0.37701188,2631.3,2631.1,0.67137112]
[1646451925991,0.37701188,2631.3,2631.0,0.00238171]
[1646451926190,0.37701188,2631.3,2630.7,3.998]
[1646451926390,0.37701188,2631.3,2631.1,0.00238168]
[1646451927436,0.37701188,2631.3,2630.7,4.6876878]
[1646451927636,0.37701188,2631.3,2631.1,0.00238175]
[1646451928642,0.37701188,2631.3,2630.7,4.6876878]
[1646451928841,0.37701188,2631.3,2631.1,0.00238182]
[1646451929844,0.37701188,2631.3,2630.6,6.3207878]
[1646451930043,0.37701188,2631.3,2631.1,0.00238182]
[1646451930044,0.37797188,2631.3,2631.1,0.00238182]
[1646451930244,0.37701188,2631.3,2631.1,0.00238182]
[1646451930895,0.37701188,2631.3,2630.8,0.6896878]
[1646451930896,0.37701188,2631.3,2630.9,3.5]
[1646451931093,0.37701188,2631.3,2630.9,4.5]
[1646451931295,0.37701188,2631.3,2631.1,0.00238181]
[1646451931698,0.37701188,2631.3,2631.1,3.50238181]
[1646451932092,0.37701188,2631.3,2631.1,4.5]
[1646451932497,0.37701188,2631.3,2631.1,4.5023818]
[1646451932707,0.37701188,2631.3,2631.1,1.0023818]
[1646451933104,0.37701188,2631.3,2631.1,0.0023818]
[1646451933305,0.37701188,2631.3,2631.0,1.20288057]
[1646451933506,0.37701188,2631.3,2630.8,5.1896878]
[1646451933705,0.37701188,2631.3,2631.1,0.0023818]
[1646451934546,0.37701188,2631.3,2630.8,5.1896878]
[1646451934752,0.37701188,2631.3,2631.1,0.0023818]
[1646451935850,0.37701188,2631.3,2630.9,0.6896878]
[1646451936053,0.37701188,2631.3,2631.1,0.0023818]
[1646451936251,0.37701188,2631.3,2631.0,1.0]
[1646451936651,0.37701188,2631.3,2630.8,4.5]
[1646451936952,2.92701188,2631.4,2630.9,4.1]
[1646451937155,2.92701188,2631.4,2631.0,3.5]
[1646451937353,2.92701188,2631.4,2631.0,4.5]
[1646451937853,1.26411764,2631.4,2631.2,0.93862678]
[1646451938496,1.26411764,2631.4,2631.1,1.0]
[1646451938698,1.26411764,2631.4,2630.8,4.5]
[1646451938895,1.26411764,2631.4,2630.8,3.5]
[1646451939195,1.26411764,2631.4,2630.8,4.5]
[1646451939396,1.26411764,2631.4,2630.8,3.5]
[1646451939594,1.26411764,2631.4,2631.0,0.00255129]
[1646451940596,1.26411764,2631.4,2630.8,5.51950619]
[1646451940897,1.26411764,2631.4,2631.0,0.00255135]
[1646451941796,1.26411764,2631.4,2630.8,5.51950619]
[1646451942037,1.26411764,2631.4,2631.0,0.00254559]
[1646451943042,1.26411764,2631.4,2630.8,5.51950619]
[1646451943243,1.26411764,2631.4,2631.0,0.00254559]
[1646451944245,1.26411764,2631.4,2630.6,5.6311]
[1646451944446,1.26507764,2631.4,2630.6,5.6311]
[1646451944646,1.26507764,2631.4,2631.0,0.00246159]
[1646451944845,1.26411764,2631.4,2631.0,0.00246159]
[1646451945448,1.26411764,2631.4,2630.6,5.6311]
[1646451945795,0.90743525,2631.3,2631.0,0.00246197]
[1646451946586,0.90743525,2631.3,2630.7,1.33014303]
[1646451946787,1.11999994,2631.2,2631.0,0.00246194]
[1646451946988,0.90743525,2631.1,2631.0,0.00246194]
[1646451947688,0.90743525,2631.1,2630.9,0.63982951]
[1646451947890,0.90743525,2631.0,2630.9,0.63982951]
[1646451948091,0.90743525,2631.3,2630.9,4.14219606]
[1646451948290,0.90743525,2631.2,2631.0,0.63982951]
[1646451948490,0.90743525,2631.1,2631.0,0.63982951]
[1646451948893,0.90743525,2631.5,2631.0,0.63982951]
[1646451949089,0.90743525,2631.4,2631.0,0.63982951]
[1646451949291,0.87945507,2631.6,2630.9,4.50236935]
[1646451949536,0.90753276,2631.5,2631.0,0.64003174]
[1646451950141,0.90753276,2631.4,2631.0,0.64003174]
[1646451950344,0.90753276,2631.3,2631.0,0.64003174]
[1646451950544,0.90753276,2631.2,2631.0,0.64240117]
[1646451950746,0.90753276,2631.1,2631.0,0.64240117]
[1646451950944,0.00236889,2631.6,2631.0,0.64240117]
[1646451951146,0.00236889,2631.6,2631.1,0.87869371]
[1646451951345,1.60905511,2631.8,2631.2,0.64003174]
[1646451951748,0.00238058,2631.6,2631.2,0.64003174]
[1646451952646,0.70152235,2631.8,2631.2,0.64003174]
[1646451952847,0.00238366,2631.6,2631.2,0.64003174]
[1646451953045,0.90991642,2631.6,2631.2,0.64003174]
[1646451953303,0.90753276,2631.5,2631.3,0.64003174]
[1646451953485,0.90753276,2631.5,2631.0,0.0023842]
[1646451953486,0.00238366,2631.6,2631.4,0.64003174]
[1646451953686,0.00238366,2631.6,2631.5,0.64003174]
[1646451953887,0.70056235,2631.6,2631.5,0.64003174]
[1646451954189,1.6869902,2631.6,2631.5,0.64003174]
[1646451954390,2.59468052,2631.6,2631.0,0.64241594]
[1646451954592,0.90769032,2631.5,2631.1,0.64003174]
[1646451954792,0.90769032,2631.4,2631.2,0.64003174]
[1646451954992,0.70056235,2631.6,2631.3,0.64003174]
[1646451955191,0.70390413,2631.6,2631.4,0.64003174]
[1646451955397,0.70294413,2631.6,2631.5,0.64003174]
[1646451955594,0.70294413,2631.6,2631.0,0.64241407]
[1646451956192,0.70056235,2631.6,2631.0,0.64003174]
[1646451956395,0.00238119,2631.6,2631.0,0.64241347]
[1646451957443,1.60826359,2631.7,2631.0,0.64003174]
[1646451957639,0.00238119,2631.6,2631.0,0.64241347]
[1646451958443,0.91008243,2631.6,2631.0,0.64241347]
[1646451958645,0.90770124,2631.6,2631.0,4.14003174]
[1646451958843,0.91008271,2631.6,2631.1,0.64003174]
[1646451959647,0.91008271,2631.6,2631.2,0.64003174]
[1646451959846,0.90770124,2631.6,2631.3,0.64003174]
[1646451960045,0.91008285,2631.6,2631.0,0.64241389]
[1646451960245,0.91008285,2631.6,2631.1,0.64003174]
[1646451960645,0.91008285,2631.6,2631.0,0.00238215]
[1646451960646,0.91008285,2631.6,2631.2,0.64003174]
[1646451960887,0.90770124,2631.6,2631.3,0.64003174]
[1646451961089,0.90770124,2631.6,2631.4,0.64003174]
[1646451961287,0.90770124,2631.6,2630.9,1.1769]
[1646451961488,0.91008285,2631.6,2631.0,0.64277785]
[1646451962090,0.90770124,2631.6,2631.0,4.1403957]
[1646451962288,0.90770124,2631.6,2631.0,5.1403957]
[1646451962491,0.91008277,2631.6,2631.1,0.6403957]
[1646451963193,0.91008277,2631.6,2631.0,4.50238207]
[1646451963194,0.91008277,2631.6,2631.0,4.14277777]
[1646451963393,0.90770124,2631.6,2631.0,1.0]
[1646451963592,0.91008278,2631.6,2631.0,3.50238209]
[1646451963791,0.91008278,2631.6,2631.0,4.50238209]
[1646451964646,0.91008278,2631.6,2631.0,4.5]
[1646451964647,0.90770124,2631.6,2631.0,4.5]
[1646451964844,0.91008275,2631.6,2631.0,4.50238206]
[1646451965046,0.91008275,2631.6,2631.0,5.19269558]
[1646451965247,0.91008275,2631.6,2631.2,1.14605833]
[1646451965647,0.91008275,2631.6,2631.0,1.00238206]
[1646451965848,0.91008275,2631.6,2631.0,3.5]
[1646451965849,0.90770124,2631.6,2631.0,3.5]
[1646451966048,0.91008282,2631.6,2631.0,3.50238212]
[1646451966248,0.91008282,2631.6,2631.0,1.00238212]
[1646451966648,0.91008282,2631.6,2631.0,0.00238212]
[1646451967049,0.90770124,2631.6,2631.0,4.19031352]
[1646451967252,0.91008276,2631.6,2631.0,4.50238207]
[1646451967448,0.91008276,2631.6,2631.3,1.14622164]
[1646451968304,0.90770124,2631.6,2631.3,1.14622164]
[1646451968491,0.91008284,2631.6,2631.3,1.14622164]
[1646451969296,0.90770124,2631.6,2631.3,1.14622164]
[1646451969700,0.91008284,2631.6,2631.3,1.14622164]
[1646451970501,0.90770124,2631.6,2631.3,1.14622164]
[1646451971102,0.00239039,2631.6,2631.3,1.14622164]
[1646451971301,0.00239039,2631.6,2631.4,3.5]
[1646451971502,0.00043388,2631.6,2631.5,3.7]
[1646451971703,3.8,2631.7,2631.5,8.2]
[1646451971904,3.8,2631.7,2631.6,0.69031352]
[1646451972968,3.8,2631.7,2631.5,4.7]
[1646451973180,3.8,2631.7,2631.5,5.39022633]
[1646451973370,3.8,2631.7,2631.5,17.43232633]
[1646451974371,3.80181686,2631.7,2631.5,17.43232633]
[1646451974572,3.80181686,2631.7,2631.6,3.5]
[1646451974771,3.80181686,2631.7,2631.6,4.5]
[1646451975371,3.8,2631.7,2631.6,4.5]
[1646451975799,3.8,2631.7,2631.6,1.0]
[1646451976189,3.8,2631.7,2631.4,5.19022633]
[1646451976496,3.8,2631.7,2631.4,3.5]
[1646451976692,3.8,2631.7,2631.4,4.5]
[1646451976894,3.8025703,2631.7,2631.4,3.5]
[1646451977109,3.8025703,2631.7,2631.3,0.69279701]
[1646451977298,4.6129703,2631.7,2631.3,0.69279701]
[1646451977496,4.6129703,2631.7,2631.3,0.00257068]
[1646451977799,4.6104,2631.7,2630.9,1.86712633]
[1646451977994,4.61136,2631.7,2630.9,1.86712633]
[1646451978194,5.71477186,2631.7,2631.3,0.00257065]
[1646451978396,5.71381186,2631.7,2631.3,0.00257065]
[1646451978995,5.71381186,2631.7,2630.9,2.82298532]
[1646451979195,5.71381186,2631.7,2631.6,0.01439813]
[1646451979196,5.71220159,2631.7,2631.6,0.01439813]
[1646451979399,5.71381186,2631.7,2631.6,0.01439813]
[1646451980241,5.71124159,2631.7,2631.6,0.01439813]
[1646451981246,4.6104,2631.7,2631.6,0.01439813]
[1646451982247,3.8,2631.7,2631.6,0.01439813]
[1646451983048,4.7178048,2631.7,2631.6,0.64241423]
[1646451984694,4.7178048,2631.7,2631.6,0.6280161]
[1646451984895,4.6678048,2631.7,2631.6,0.6280161]
[1646451985094,4.6678048,2631.7,2631.5,0.6280161]
[1646451985293,0.9178048,2631.6,2631.5,0.6280161]
[1646451988243,3.7523917,2631.7,2631.5,0.6280161]
[1646451988843,3.75,2631.7,2631.5,0.6280161]
[1646451989044,3.75239169,2631.7,2631.5,0.6280161]
[1646451989844,3.75,2631.7,2631.5,0.6280161]
[1646451990346,3.75239169,2631.7,2631.5,0.6280161]
[1646451991099,3.75,2631.7,2631.5,0.6280161]
[1646451991299,3.75,2631.7,2631.6,3.5]
[1646451991499,3.75,2631.7,2631.6,4.1280161]
[1646451991500,2.08982624,2631.7,2631.6,4.1280161]
[1646451991699,2.08982624,2631.7,2631.6,5.1280161]
[1646451991899,2.08982624,2631.7,2631.6,1.6280161]
[1646451992300,2.08743525,2631.7,2631.6,0.6280161]
[1646451992501,2.08743525,2631.7,2631.6,3.5]
[1646451992702,2.08743525,2631.7,2631.6,5.1280161]
[1646451993001,1.98743525,2631.7,2631.6,5.1280161]
[1646451993201,1.98743525,2631.7,2631.6,1.6280161]
[1646451993403,1.98743525,2631.7,2631.6,0.6280161]
[1646451994201,2.93585181,2631.7,2631.6,0.6280161]
[1646451995446,2.93585181,2631.7,2631.6,4.1280161]
[1646451995645,1.98743525,2631.7,2631.6,0.6280161]
[1646451995846,1.98743525,2631.7,2631.6,1.6280161]
[1646451996049,1.98743525,2631.7,2631.6,0.6280161]
[1646451997744,1.98743525,2631.7,2631.6,4.1280161]
[1646451997947,1.98743525,2631.7,2631.6,5.1280161]
[1646451998600,1.98743525,2631.7,2631.6,1.6280161]
[1646451998799,1.98743525,2631.7,2631.6,4.1280161]
[1646451998997,1.98743525,2631.7,2631.6,5.1280161]
[1646451999197,1.98743525,2631.7,2631.6,1.6280161]
[1646451999601,1.98743525,2631.7,2631.6,0.6280161]
[1646452000203,1.98743525,2631.7,2631.6,4.1280161]
[1646452000401,1.98743525,2631.7,2631.6,1.6280161]
[1646452000801,1.98743525,2631.7,2631.6,0.6280161]
[1646452005447,2.93636389,2631.7,2631.6,0.6280161]
[1646452006695,2.83636389,2631.7,2631.6,0.6280161]
[1646452011458,1.88743525,2631.7,2631.6,0.6280161]
[1646452011857,0.423907,2631.7,2631.6,0.5280161]
[1646452012861,0.423907,2631.7,2631.6,1.5070055]
[1646452015899,0.423907,2631.7,2631.6,5.0070055]
[1646452016298,0.423907,2631.7,2631.6,6.0070055]
[1646452017147,0.423907,2631.7,2631.6,2.5070055]
[1646452017347,0.423907,2631.7,2631.6,0.5280161]
[1646452017549,0.423907,2631.7,2631.6,1.5280161]
[1646452017748,0.423907,2631.7,2631.6,0.5280161]
[1646452021994,0.423907,2631.7,2631.6,1.64005847]
[1646452024747,0.423907,2631.7,2631.6,0.5280161]
[1646452031807,1.40432448,2631.7,2631.6,0.5280161]
[1646452032050,0.423907,2631.7,2631.6,0.5280161]
[1646452032253,1.40430914,2631.7,2631.6,0.5280161]
[1646452032452,0.423907,2631.7,2631.6,0.5280161]
[1646452032652,1.40432992,2631.7,2631.6,0.5280161]
[1646452032951,0.423907,2631.7,2631.6,0.5280161]
[1646452033152,1.40445131,2631.7,2631.6,0.5280161]
[1646452033351,0.423907,2631.7,2631.6,0.5280161]
[1646452033752,1.40444484,2631.7,2631.6,0.5280161]
[1646452033952,1.40444775,2631.7,2631.6,0.5280161]
[1646452034152,1.4044472,2631.7,2631.6,0.5280161]
[1646452034352,1.40444155,2631.7,2631.6,0.5280161]
[1646452034552,0.423907,2631.7,2631.6,0.5280161]
[1646452034760,1.40443493,2631.7,2631.6,0.5280161]
[1646452034957,0.423907,2631.7,2631.6,0.5280161]
[1646452035157,1.40448449,2631.7,2631.6,0.5280161]
[1646452035360,0.423907,2631.7,2631.6,1.44219388]
[1646452035557,1.4044656,2631.7,2631.6,1.44219388]
[1646452035809,1.40313727,2631.7,2631.6,1.44219388]
[1646452035997,1.40316212,2631.7,2631.6,1.44219388]
[1646452036197,1.40316065,2631.7,2631.6,1.44219388]
[1646452036396,0.42257958,2631.7,2631.6,1.44219388]
[1646452036596,1.40317659,2631.7,2631.6,1.44219388]
[1646452036798,0.42257958,2631.7,2631.6,1.44219388]
[1646452036998,1.40323131,2631.7,2631.6,1.44219388]
[1646452037202,0.42257958,2631.7,2631.6,1.44219388]
[1646452037404,1.40323732,2631.7,2631.6,1.44219388]
[1646452037602,0.42257958,2631.7,2631.6,1.44219388]
[1646452038004,1.40323663,2631.7,2631.6,1.44219388]
[1646452038206,0.42257958,2631.7,2631.6,1.44219388]
[1646452038403,1.40323771,2631.7,2631.6,1.44219388]
[1646452038604,0.42257958,2631.7,2631.6,1.44219388]
[1646452038804,1.40323785,2631.7,2631.6,1.44219388]
[1646452039005,0.00096,2632.0,2631.9,0.61483733]
[1646452039204,0.98860699,2632.0,2631.9,1.14285343]
[1646452041155,3.14135852,2632.5,2631.9,1.14285343]
[1646452041156,0.93384374,2632.5,2631.9,1.14285343]
[1646452041352,0.88384374,2632.5,2631.9,0.61483733]
[1646452041552,2.88384374,2632.5,2631.9,0.61483733]
[1646452041954,2.0,2632.5,2631.9,0.61483733]
[1646452044905,3.7,2632.4,2631.4,0.82231892]
[1646452045107,4.75691906,2632.4,2631.4,0.82231892]
[1646452045506,4.75691906,2632.4,2631.7,0.00277761]
[1646452046206,3.70096,2632.4,2631.7,0.00277761]
[1646452046405,0.00096,2632.4,2631.4,0.82231892]
[1646452046806,0.00096,2632.4,2631.7,0.00277771]
[1646452047651,0.00096,2632.4,2631.4,0.82231892]
[1646452047949,0.00096,2632.4,2631.7,0.00277771]
[1646452048149,0.00096,2632.4,2631.8,1.14467355]
[1646452048349,2.0,2632.5,2631.8,1.14467355]
[1646452050258,5.8,2632.5,2631.8,1.14467355]
[1646452050455,5.8,2632.5,2632.2,1.04619305]
[1646452050813,0.00096,2632.4,2632.2,1.04619305]
[1646452050999,5.8,2632.5,2632.2,1.04619305]
[1646452051203,6.50015806,2632.5,2631.5,0.69175835]
[1646452051403,6.50111806,2632.5,2631.6,3.5]
[1646452051603,6.50111806,2632.5,2631.7,0.00269455]
[1646452052005,0.70015806,2632.4,2631.7,0.00269455]
[1646452052205,0.70015806,2632.4,2631.9,1.10560665]
[1646452053706,0.70015806,2632.4,2631.6,1.0]
[1646452053907,0.70015806,2632.3,2631.7,0.002587]
[1646452055051,0.70015806,2632.3,2631.7,0.0025869]
[1646452055052,0.70015806,2632.2,2631.7,0.0025869]
[1646452056250,0.70015806,2632.2,2631.7,0.00258686]
[1646452056652,0.70015806,2632.1,2631.7,0.00258686]
[1646452057255,0.65015806,2632.1,2631.4,1.2459]
[1646452057454,0.65015806,2632.1,2631.7,0.00260255]
[1646452058497,0.65015806,2632.1,2631.4,1.2459]
[1646452058697,0.65015806,2632.1,2631.7,0.00260255]
[1646452059702,0.65015806,2632.1,2631.4,1.2459]
[1646452059902,0.65015806,2632.1,2631.7,0.00260255]
[1646452060402,4.45015806,2632.1,2631.7,0.00260255]
[1646452060805,4.45015806,2632.1,2631.4,1.2459]
[1646452061306,0.92323785,2632.0,2631.7,0.00260025]
[1646452062749,0.92323785,2632.0,2631.7,0.00260022]
[1646452063749,0.92323785,2632.0,2631.7,0.00236998]
[1646452064555,0.92323785,2632.0,2631.5,0.62546664]
[1646452064957,0.92323785,2632.0,2631.7,0.00237032]
[1646452065810,0.92323785,2632.0,2631.5,0.62546664]
[1646452065999,0.92323785,2632.0,2631.7,0.00237032]
[1646452066801,0.92323785,2631.9,2631.7,0.00237032]
[1646452067100,0.92323785,2631.9,2631.5,0.62546664]
[1646452067101,0.92323785,2631.8,2631.5,0.62546664]
[1646452067301,0.70020006,2632.1,2631.7,0.00238555]
[1646452068100,1.85785351,2632.3,2631.7,1.11434741]
[1646452068101,0.92324041,2632.0,2631.7,1.11434741]
[1646452068304,0.70116006,2632.3,2631.8,0.62546664]
[1646452068502,0.92319592,2632.3,2631.8,4.12546664]
[1646452068702,0.92319592,2632.3,2631.9,0.62546664]
[1646452069548,0.92319592,2632.3,2632.0,0.62546664]
[1646452069753,0.92319592,2632.3,2632.1,0.62546664]
[1646452070054,0.92313379,2632.2,2631.7,2.29755528]
[1646452070353,0.92313379,2632.1,2631.8,0.62556261]
[1646452070553,2.70020006,2632.5,2631.8,0.62556261]
[1646452070756,1.62418863,2632.4,2631.8,0.62556261]
[1646452070959,3.8,2632.2,2631.8,0.62556261]
[1646452071454,0.9230169,2632.1,2631.8,4.12556261]
[1646452071654,0.92297657,2632.0,2631.9,0.62556261]
[1646452071855,0.92297139,2632.1,2631.9,0.62556261]
[1646452072055,0.92297101,2632.0,2631.9,0.62556261]
[1646452072255,0.92297253,2632.0,2631.9,0.62556261]
[1646452072457,0.92284428,2632.0,2631.9,0.62556261]
[1646452072754,3.8,2632.2,2631.8,0.62556261]
[1646452072755,0.92284778,2632.1,2631.8,0.62556261]
[1646452072955,0.92284778,2632.1,2631.7,3.29755232]
[1646452072956,0.9228474,2632.0,2631.9,0.62556261]
[1646452073155,0.92290249,2632.1,2631.9,0.62556261]
[1646452073403,3.8,2632.2,2632.0,0.62556261]
[1646452073605,0.92288966,2632.1,2631.7,2.29755229]
[1646452073804,0.92288966,2632.1,2631.8,0.62521924]
[1646452075007,1.62308972,2632.1,2631.8,0.62521924]
[1646452075208,1.62308972,2632.1,2631.9,0.62521924]
[1646452075408,0.74206018,2631.7,2631.5,4.44243729]
[1646452075608,0.92288966,2631.6,2631.5,4.44243729]
[1646452075908,0.92288966,2631.6,2631.5,5.06785295]
[1646452076411,0.92288966,2631.6,2631.5,0.62541566]
[1646452076610,0.92288966,2631.6,2631.4,0.62541566]
[1646452076812,0.92288966,2631.6,2631.4,0.62780655]
[1646452077856,0.92288966,2631.6,2631.4,0.62541566]
[1646452078057,0.92288966,2631.6,2631.4,0.62780657]
[1646452079057,0.92288966,2631.6,2631.4,0.62541566]
[1646452079262,0.92288966,2631.6,2631.4,0.62780651]
[1646452080163,0.92288966,2631.6,2631.4,0.62541566]
[1646452080361,0.92288966,2631.6,2631.4,0.62780651]
[1646452080810,0.92288966,2631.6,2631.5,0.62541566]
[1646452081001,4.72288966,2631.6,2631.5,0.62541566]
[1646452081606,4.72153904,2631.6,2631.5,0.62541566]
[1646452082606,8.22153904,2631.6,2631.5,0.62541566]
[1646452083005,8.22153904,2631.6,2631.4,0.00239085]
[1646452083206,3.5,2631.5,2631.4,0.00239085]
[1646452083407,4.49288588,2631.5,2631.4,0.00239085]
[1646452083605,5.19188849,2631.5,2631.4,0.00239085]